bitfinex-derivatives/quotes_SOLF0:USTF0_20250905
["timestamp","ask_amount","ask_price","bid_price","bid_amount"]
[1757108875018,0.03092631,203.98,203.92,7.79]
[1757108875219,0.03092631,203.98,203.94,7.79]
[1757108875917,0.03092631,203.98,203.93,2.14875481]
[1757108876122,0.03092631,203.98,203.94,7.79]
[1757108877012,0.03092631,203.98,203.92,7.79]
[1757108878516,0.03092631,203.98,203.94,7.79]
[1757108879112,0.03092631,203.98,203.93,2.14875481]
[1757108879820,0.03092631,203.98,203.94,7.79]
[1757108880119,0.03092631,203.98,203.93,2.14875481]
[1757108880314,0.03092631,203.98,203.94,7.79]
[1757108880520,0.03092631,203.98,203.93,2.14875481]
[1757108881215,0.03092631,203.98,203.94,7.79]
[1757108881820,0.03092631,203.98,203.93,2.14875481]
[1757108882223,0.03092631,203.98,203.94,7.79]
[1757108882619,0.03092631,203.98,203.93,2.14875481]
[1757108883023,0.03092631,203.98,203.94,7.79]
[1757108883320,0.03092631,203.98,203.93,2.14875481]
[1757108883624,0.03092631,203.98,203.94,7.79]
[1757108884327,0.03092631,203.98,203.93,2.14875481]
[1757108884522,0.03092631,203.98,203.94,7.79]
[1757108884821,0.03092631,203.98,203.92,2.14875481]
[1757108885027,0.03092631,203.98,203.93,7.79]
[1757108895528,0.03092631,203.98,203.9,4.4134]
[1757108895729,0.03092631,203.98,203.91,7.79]
[1757108896228,0.03092631,203.98,203.75,4.10633476]
[1757108896229,7.69,203.91,203.75,4.10633476]
[1757108896430,7.69,203.85,203.74,7.79]
[1757108896836,0.03513873,203.82,203.74,7.79]
[1757108906639,7.63,203.81,203.74,7.79]
[1757108906839,0.03513873,203.82,203.74,7.79]
[1757108911145,7.63,203.81,203.74,7.79]
[1757108917156,7.63,203.81,203.71,7.66]
[1757108917357,7.63,203.81,203.72,7.66]
[1757108919860,0.03513873,203.82,203.71,115.12]
[1757108922666,0.03513873,203.82,203.71,119.5375]
[1757108923366,0.03513873,203.82,203.71,4.4175]
[1757108923567,0.03513873,203.82,203.73,3.3670557]
[1757108923862,3.3670557,203.87,203.73,3.3670557]
[1757108924265,0.03286045,203.8,203.73,7.7841557]
[1757108925673,0.03286045,203.8,203.73,3.3670557]
[1757108925862,0.03286045,203.8,203.76,3.3670557]
[1757108926265,0.03286045,203.8,203.73,3.3670557]
[1757108926465,0.03286045,203.8,203.74,12.28]
[1757108926663,0.03286045,203.8,203.76,3.3670557]
[1757108928565,0.03286045,203.8,203.76,3.8670557]
[1757108928864,0.03286045,203.8,203.76,8.2834557]
[1757108929070,0.03286045,203.8,203.76,3.8670557]
[1757108929971,0.03286045,203.8,203.77,4.4162]
[1757108930166,0.03286045,203.8,203.76,3.8670557]
[1757108930472,0.03286045,203.8,203.77,3.3670557]
[1757108931973,0.03286045,203.8,203.78,4.416]
[1757108934482,0.03286045,203.8,203.79,7.98]
[1757108936879,8.06,203.9,203.79,7.98]
[1757108937078,8.06,203.9,203.81,3.3670557]
[1757108937279,8.06,203.9,203.83,7.98]
[1757108939183,8.06,203.9,203.83,131.54]
[1757108939373,3.3670557,203.95,203.83,131.54]
[1757108940272,8.06,203.94,203.83,131.54]
[1757108940478,5.37561416,203.99,203.83,131.54]
[1757108940673,8.06,203.94,203.83,7.98]
[1757108942282,3.3670557,203.92,203.83,7.98]
[1757108942483,8.06,203.91,203.83,7.98]
[1757108942982,8.06,203.91,203.79,7.98]
[1757108943579,3.3670557,203.89,203.79,7.98]
[1757108943884,8.06,203.93,203.74,51.6070557]
[1757108944079,8.06,203.86,203.74,51.6070557]
[1757108944281,3.3670557,203.87,203.74,51.6070557]
[1757108944480,8.06,203.86,203.74,51.6070557]
[1757108945182,8.06,203.86,203.75,7.98]
[1757108945478,8.06,203.83,203.75,10.13824859]
[1757108945983,8.06,203.83,203.75,7.98]
[1757108946174,8.06,203.83,203.71,4.12636973]
[1757108946376,8.06,203.75,203.68,7.98]
[1757108946575,2.15824859,203.74,203.68,7.98]
[1757108946779,8.06,203.73,203.65,7.98]
[1757108946977,8.06,203.71,203.65,7.98]
[1757108950382,8.06,203.71,203.6,4.4198]
[1757108950383,2.15824859,203.66,203.57,14.55874859]
[1757108950587,8.06,203.65,203.59,124.34]
[1757108952686,8.06,203.65,203.59,132.32]
[1757108952887,2.15824859,203.68,203.6,7.98]
[1757108953785,8.06,203.69,203.63,7.98]
[1757108954793,2.15824859,203.74,203.65,7.98]
[1757108954994,2.15824859,203.74,203.61,4.4197]
[1757108954995,2.15824859,203.74,203.67,7.98]
[1757108955487,2.15824859,203.74,203.68,2.15824859]
[1757108956693,2.15824859,203.77,203.7,2.15824859]
[1757108957192,8.06,203.78,203.71,7.98]
[1757108957490,8.06,203.81,203.73,7.98]
[1757108957687,10.21824859,203.81,203.75,7.98]
[1757108958389,8.06,203.81,203.75,7.98]
[1757108958589,8.06,203.81,203.77,7.75]
[1757108960988,2.15824859,203.83,203.77,7.75]
[1757108961487,7.88,203.84,203.77,7.75]
[1757108961690,7.88,203.84,203.77,9.90824859]
[1757108964399,7.88,203.84,203.74,35.38]
[1757108964400,2.15824859,203.87,203.79,2.15824859]
[1757108964893,2.15824859,203.87,203.8,7.75]
[1757108965193,7.88,203.88,203.82,7.75]
[1757108965497,7.88,203.88,203.84,7.75]
[1757108965997,10.03824859,203.91,203.84,7.75]
[1757108966896,7.88,203.88,203.81,2.15824859]
[1757108968297,7.88,203.86,203.8,7.75]
[1757108968497,7.88,203.86,203.79,2.15824859]
[1757108969096,7.88,203.86,203.77,134.06824859]
[1757108971896,7.88,203.86,203.79,2.15824859]
[1757108978295,7.88,203.86,203.8,7.75]
[1757108979299,7.88,203.86,203.77,123.74]
[1757108979300,7.88,203.86,203.81,2.15824859]
[1757108979505,7.88,203.86,203.82,7.75]
[1757108979803,7.88,203.87,203.82,7.75]
[1757108980401,2.15824859,203.88,203.82,7.75]
[1757108980596,7.88,203.87,203.82,7.75]
[1757108980800,7.88,203.88,203.82,7.75]
[1757108982807,10.03824859,203.91,203.83,2.15824859]
[1757108983111,10.03824859,203.91,203.84,7.75]
[1757108983609,2.15824859,203.87,203.77,7.75]
[1757108983910,7.88,203.86,203.77,9.90824859]
[1757108984107,2.15824859,203.87,203.77,9.90824859]
[1757108984611,7.88,203.86,203.77,9.90824859]
[1757108985108,7.88,203.86,203.79,2.15824859]
[1757108987010,7.88,203.86,203.79,9.90824859]
[1757108989611,7.88,203.86,203.79,7.75]
[1757108993019,7.88,203.86,203.81,7.44]
[1757108993319,2.15824859,203.91,203.83,7.44]
[1757108993520,9.51824859,203.91,203.83,7.44]
[1757108994416,7.36,203.91,203.83,7.44]
[1757108994719,9.51824859,203.91,203.83,7.44]
[1757108997822,7.36,203.91,203.83,7.44]
[1757108998022,9.51824859,203.91,203.83,7.44]
[1757109005018,9.51824859,203.91,203.83,9.59824859]
[1757109007628,7.36,203.91,203.83,7.44]
[1757109007923,12.73561416,203.94,203.83,7.44]
[1757109008127,7.36,203.94,203.84,7.44]
[1757109010228,7.36,203.94,203.86,2.69610082]
[1757109010423,7.36,203.94,203.87,7.44]
[1757109011031,7.36,204.14,204.0,4.4112]
[1757109011230,7.36,204.11,204.01,4.1]
[1757109011431,2.69610082,204.18,203.97,4.1]
[1757109011432,2.69610082,204.06,203.97,4.1]
[1757109011626,7.36,204.05,203.97,4.1]
[1757109011822,7.36,204.05,203.94,4.1]
[1757109012027,7.36,204.05,203.95,4.70257732]
[1757109012223,2.69610082,204.06,203.96,9.24590265]
[1757109012428,7.36,204.05,203.97,9.24590265]
[1757109012732,7.36,204.05,203.98,9.24590265]
[1757109012931,7.36,204.05,203.94,4.1]
[1757109012932,7.36,204.05,203.99,4.54332533]
[1757109013131,7.36,204.05,204.0,4.54332533]
[1757109013331,7.36,204.05,204.01,4.54332533]
[1757109013531,7.36,204.05,203.94,4.1]
[1757109013728,2.69610082,204.06,203.95,13.13129816]
[1757109014032,7.36,204.05,203.96,9.23384263]
[1757109014233,7.36,204.05,203.97,9.23384263]
[1757109014433,7.36,204.05,203.98,9.23384263]
[1757109014733,7.36,204.05,203.99,9.23384263]
[1757109014930,2.69610082,204.06,204.0,9.23384263]
[1757109015132,7.36,204.06,204.01,4.69651032]
[1757109015434,7.36,204.06,204.02,4.69651032]
[1757109015629,7.36,204.06,204.03,4.69651032]
[1757109015931,7.36,204.06,204.04,4.69651032]
[1757109016131,7.36,204.06,203.94,4.1]
[1757109016328,7.36,204.06,203.95,9.94428027]
[1757109016534,7.36,204.06,203.96,9.94428027]
[1757109016733,7.36,204.06,203.97,9.94428027]
[1757109016929,2.69610082,204.07,203.98,9.94428027]
[1757109017132,2.69610082,204.07,203.99,9.94428027]
[1757109017335,7.36,204.06,204.0,9.94428027]
[1757109017535,7.36,204.06,204.01,5.41292373]
[1757109017731,7.36,204.01,203.86,4.12582704]
[1757109017932,7.36,203.94,203.87,9.96362197]
[1757109018233,7.36,203.94,203.84,7.44]
[1757109019029,7.36,203.94,203.85,11.75925446]
[1757109019241,7.36,203.94,203.86,3.8693652]
[1757109019538,2.69610082,203.98,203.87,3.86926178]
[1757109019735,10.70610082,203.98,203.85,7.89]
[1757109020033,10.70610082,203.98,203.87,7.89]
[1757109020236,10.70610082,203.98,203.88,3.86906041]
[1757109020536,8.01,203.98,203.88,7.89]
[1757109020737,8.01,203.98,203.89,3.86873574]
[1757109020936,8.01,203.98,203.88,7.89]
[1757109021234,8.01,203.98,203.89,3.86879735]
[1757109021434,8.01,203.98,203.88,7.89]
[1757109021636,8.01,203.98,203.89,3.86858465]
[1757109021834,8.01,203.98,203.88,7.89]
[1757109022035,8.01,203.98,203.89,3.86858465]
[1757109022237,8.01,203.98,203.88,7.89]
[1757109022536,8.01,203.98,203.89,3.86843583]
[1757109022832,8.01,203.98,203.9,3.86843583]
[1757109023035,8.01,203.98,203.88,7.89]
[1757109023235,8.01,203.98,203.89,3.86829315]
[1757109023434,8.01,203.98,203.88,7.89]
[1757109023635,8.01,203.98,203.89,3.8683428]
[1757109023834,8.01,203.98,203.88,7.89]
[1757109024036,8.01,203.98,203.89,3.8683428]
[1757109024232,8.01,203.98,203.9,7.89]
[1757109027246,20.98610082,204.01,203.9,7.89]
[1757109029050,10.70610082,204.01,203.9,7.89]
[1757109029250,10.70610082,204.01,203.91,7.89]
[1757109031048,8.01,203.97,203.87,7.89]
[1757109031245,2.69610082,203.95,203.83,10.58610082]
[1757109031450,8.01,203.94,203.84,8.35351838]
[1757109031649,8.01,203.94,203.85,8.35351838]
[1757109031853,8.01,203.94,203.83,7.89]
[1757109032047,8.01,203.94,203.84,4.48388982]
[1757109032351,8.01,203.94,203.83,7.89]
[1757109034754,2.69610082,203.92,203.79,2.69610082]
[1757109034953,8.01,203.89,203.8,4.48554502]
[1757109035154,8.01,203.89,203.79,2.69610082]
[1757109035348,8.01,203.89,203.8,4.48540802]
[1757109035548,8.01,203.89,203.79,2.69610082]
[1757109035948,8.01,203.89,203.77,7.89]
[1757109036144,8.01,203.89,203.78,8.35753525]
[1757109036354,8.01,203.89,203.79,8.37395103]
[1757109036555,8.01,203.89,203.8,4.48560711]
[1757109036855,8.01,203.89,203.77,7.89]
[1757109037155,8.01,203.89,203.78,8.37379303]
[1757109037355,8.01,203.89,203.79,8.37379303]
[1757109037656,8.01,203.89,203.8,4.48544862]
[1757109037852,8.01,203.89,203.79,7.89]
[1757109038154,8.01,203.89,203.8,4.48531873]
[1757109038355,8.01,203.89,203.79,7.89]
[1757109038555,8.01,203.89,203.8,4.4850767]
[1757109038756,8.01,203.89,203.79,7.89]
[1757109038956,8.01,203.89,203.8,4.4850767]
[1757109039157,8.01,203.89,203.79,7.89]
[1757109039358,8.01,203.89,203.8,4.48453992]
[1757109039554,8.01,203.89,203.79,7.89]
[1757109039853,8.01,203.89,203.8,4.48453773]
[1757109040154,8.01,203.89,203.79,7.89]
[1757109040352,8.01,203.89,203.8,4.48424586]
[1757109040552,8.01,203.86,203.73,7.89]
[1757109040753,8.01,203.86,203.75,7.89]
[1757109040954,8.01,203.86,203.76,4.48411884]
[1757109041159,8.01,203.86,203.78,7.89]
[1757109046069,8.01,203.83,203.72,7.89]
[1757109046269,8.01,203.8,203.73,8.29201065]
[1757109046469,8.01,203.8,203.72,7.89]
[1757109046768,8.01,203.8,203.73,8.29100684]
[1757109046971,8.01,203.8,203.72,7.89]
[1757109047165,8.01,203.8,203.73,4.40748392]
[1757109047468,8.01,203.8,203.72,7.89]
[1757109048060,20.05,203.8,203.65,7.89]
[1757109048366,7.52,203.76,203.67,8.14]
[1757109048567,7.52,203.76,203.68,4.38647972]
[1757109048768,7.52,203.76,203.67,8.14]
[1757109048970,7.52,203.76,203.68,4.38363927]
[1757109049170,7.52,203.76,203.67,8.14]
[1757109049370,7.52,203.76,203.68,4.38130191]
[1757109049571,7.52,203.76,203.69,12.52106802]
[1757109049770,7.52,203.76,203.69,8.14]
[1757109051062,10.21610082,203.76,203.64,8.14]
[1757109051265,7.52,203.76,203.65,8.25464315]
[1757109051569,7.52,203.76,203.64,8.14]
[1757109051764,7.52,203.76,203.65,8.25272451]
[1757109051969,7.52,203.76,203.66,4.37723893]
[1757109052168,7.52,203.76,203.64,8.14]
[1757109052371,7.52,203.76,203.65,8.24850058]
[1757109052574,7.52,203.76,203.64,8.14]
[1757109052764,7.52,203.76,203.66,8.14]
[1757109053266,7.52,203.76,203.67,4.37300033]
[1757109053569,7.52,203.76,203.66,8.14]
[1757109053772,7.52,203.76,203.68,8.14]
[1757109055670,10.21610082,203.8,203.68,8.14]
[1757109058172,10.21610082,203.8,203.69,3.87176112]
[1757109058471,10.21610082,203.8,203.68,8.14]
[1757109058674,7.52,203.8,203.68,8.14]
[1757109058876,7.52,203.8,203.7,8.14]
[1757109060271,7.52,203.8,203.71,3.87348212]
[1757109060574,7.52,203.8,203.7,8.14]
[1757109061066,7.52,203.8,203.71,3.87348311]
[1757109061271,7.52,203.8,203.7,8.14]
[1757109061570,7.52,203.8,203.71,8.25134857]
[1757109061770,7.52,203.8,203.7,8.14]
[1757109061972,7.52,203.8,203.71,8.25134077]
[1757109062161,7.52,203.8,203.7,8.14]
[1757109062362,7.52,203.8,203.71,8.25462276]
[1757109062561,7.52,203.78,203.66,8.14]
[1757109062772,7.52,203.78,203.67,8.25539685]
[1757109062974,7.52,203.78,203.68,8.25539685]
[1757109063173,7.52,203.78,203.66,8.14]
[1757109063371,7.52,203.78,203.67,8.25437878]
[1757109063571,7.52,203.78,203.66,8.14]
[1757109063770,7.52,203.78,203.67,8.25464546]
[1757109063972,7.52,203.78,203.66,8.14]
[1757109064274,7.52,203.78,203.67,8.25464649]
[1757109064472,7.52,203.78,203.66,8.14]
[1757109064670,7.52,203.78,203.67,8.25382331]
[1757109064972,7.52,203.78,203.66,8.14]
[1757109065167,7.52,203.78,203.67,8.25382331]
[1757109065376,2.69610082,203.76,203.66,8.14]
[1757109065565,7.52,203.75,203.67,8.25399652]
[1757109065768,7.52,203.75,203.66,8.14]
[1757109065970,7.52,203.75,203.67,8.25400377]
[1757109066276,7.52,203.75,203.66,8.14]
[1757109066577,7.52,203.75,203.67,8.25493242]
[1757109066778,7.52,203.75,203.66,8.14]
[1757109066978,7.52,203.75,203.67,8.26751302]
[1757109067172,7.52,203.75,203.68,3.88965494]
[1757109067373,7.52,203.75,203.66,8.14]
[1757109067675,7.52,203.75,203.67,8.26883083]
[1757109067866,7.52,203.75,203.68,3.8894959]
[1757109068072,7.52,203.75,203.66,8.14]
[1757109068372,7.52,203.75,203.67,3.89039488]
[1757109068569,7.52,203.72,203.63,8.14]
[1757109068769,7.52,203.72,203.64,3.89076157]
[1757109068977,7.52,203.72,203.65,3.89076157]
[1757109069176,7.52,203.72,203.63,8.14]
[1757109069367,7.52,203.72,203.64,3.86793396]
[1757109069573,9.24908097,203.7,203.63,8.14]
[1757109069878,9.24908097,203.7,203.64,3.86793396]
[1757109070175,9.24908097,203.7,203.65,3.86929996]
[1757109070376,9.24908097,203.7,203.63,8.14]
[1757109070576,9.24908097,203.7,203.64,3.86873555]
[1757109070777,1.72908097,203.7,203.65,3.86873555]
[1757109070973,9.24908097,203.7,203.63,8.14]
[1757109071177,9.24908097,203.7,203.64,3.86873456]
[1757109071378,7.52,203.69,203.65,3.86873456]
[1757109071580,7.52,203.69,203.63,8.14]
[1757109071769,7.52,203.69,203.64,12.00976861]
[1757109071969,1.72908097,203.7,203.65,3.86976861]
[1757109072275,9.24908097,203.7,203.64,8.14]
[1757109072471,7.52,203.69,203.65,3.8711623]
[1757109072779,7.52,203.69,203.64,8.14]
[1757109072972,1.72908097,203.7,203.65,3.8712569]
[1757109073169,1.72908097,203.7,203.64,8.14]
[1757109073170,9.24908097,203.7,203.64,8.14]
[1757109073480,7.52,203.69,203.65,3.87296768]
[1757109073780,7.52,203.69,203.64,8.14]
[1757109074076,17.56,203.78,203.6,1.72908097]
[1757109074077,7.52,203.67,203.6,1.72908097]
[1757109074280,7.52,203.67,203.61,3.87562932]
[1757109074470,7.52,203.67,203.62,3.87562932]
[1757109074671,7.52,203.63,203.54,1.72908097]
[1757109074875,7.52,203.63,203.56,1.72908097]
[1757109075083,7.52,203.63,203.57,3.87607181]
[1757109075380,7.52,203.63,203.58,8.14]
[1757109079684,7.35,203.64,203.58,8.14]
[1757109080782,7.35,203.64,203.57,1.72908097]
[1757109080985,1.72908097,203.63,203.55,1.72908097]
[1757109082188,1.72908097,203.63,203.56,7.38]
[1757109082688,7.35,203.64,203.56,7.38]
[1757109083287,7.35,203.64,203.57,1.72908097]
[1757109083685,1.72908097,203.65,203.58,7.38]
[1757109083880,9.07908097,203.67,203.59,1.72908097]
[1757109084186,9.07908097,203.67,203.6,7.38]
[1757109084585,7.35,203.67,203.6,7.38]
[1757109084781,7.35,203.67,203.61,1.72908097]
[1757109086187,7.35,203.67,203.53,68.7801]
[1757109086188,1.72908097,203.72,203.63,1.72908097]
[1757109086391,1.72908097,203.72,203.56,4.11015889]
[1757109086392,1.72908097,203.7,203.64,7.38]
[1757109086582,1.72908097,203.71,203.64,7.38]
[1757109087191,1.72908097,203.71,203.64,9.10908097]
[1757109087987,16.96,203.8,203.55,5.83923986]
[1757109087988,7.35,203.64,203.55,5.83923986]
[1757109088193,7.35,203.64,203.55,1.72908097]
[1757109088393,1.72908097,203.63,203.55,1.72908097]
[1757109091102,1.72908097,203.63,203.54,7.38]
[1757109092801,1.72908097,203.61,203.54,7.38]
[1757109094293,0.03474204,203.6,203.54,7.38]
[1757109094497,0.03474204,203.6,203.55,0.03662867]
[1757109094702,7.38474204,203.6,203.55,7.41662867]
[1757109095805,7.35,203.59,203.55,7.41662867]
[1757109096106,7.35,203.59,203.56,7.38]
[1757109097001,7.35,203.59,203.55,7.41662867]
[1757109097400,0.03474204,203.6,203.55,0.03662867]
[1757109097607,9.07908097,203.57,203.55,0.03662867]
[1757109097807,7.35,203.56,203.55,0.03662867]
[1757109102308,7.35,203.56,203.45,0.85521546]
[1757109102509,9.07908097,203.53,203.45,7.38]
[1757109103213,1.72908097,203.5,203.45,7.38]
[1757109103506,7.35,203.49,203.45,7.38]
[1757109105011,7.35,203.49,203.46,7.38]
[1757109105312,9.07908097,203.49,203.46,7.38]
[1757109105510,1.72908097,203.49,203.42,7.38]
[1757109106710,7.3866545,203.5,203.42,7.38]
[1757109106911,1.72908097,203.49,203.42,7.38]
[1757109113818,7.3866545,203.5,203.42,7.38]
[1757109114121,1.72908097,203.45,203.42,7.38]
[1757109114328,9.18908097,203.45,203.38,7.58]
[1757109114624,0.03763421,203.44,203.38,7.58]
[1757109118031,0.03763421,203.44,203.38,9.30908097]
[1757109121428,0.03763421,203.44,203.4,1.72908097]
[1757109121931,0.03763421,203.44,203.41,7.58]
[1757109122828,0.03763421,203.44,203.4,1.72908097]
[1757109123024,0.03763421,203.44,203.41,7.58]
[1757109123228,0.03763421,203.44,203.4,1.72908097]
[1757109123629,7.46,203.43,203.36,1.72908097]
[1757109124033,0.03763421,203.44,203.35,7.58]
[1757109124331,0.03763421,203.44,203.41,7.58]
[1757109125635,0.03763421,203.44,203.4,1.72908097]
[1757109125929,9.22671518,203.44,203.38,7.58]
[1757109126136,1.72908097,203.42,203.34,1.72908097]
[1757109126330,7.46,203.41,203.34,1.72908097]
[1757109126727,7.46,203.41,203.33,7.58]
[1757109126928,0.03218188,203.4,203.34,1.72908097]
[1757109127237,0.03218188,203.4,203.33,9.30908097]
[1757109128937,0.03218188,203.4,203.33,7.58]
[1757109129133,0.03218188,203.4,203.35,7.58]
[1757109129333,0.03218188,203.4,203.34,1.72908097]
[1757109129535,0.03218188,203.4,203.33,7.58]
[1757109129736,7.46,203.39,203.29,7.58]
[1757109132137,7.46,203.39,203.3,2.70877119]
[1757109132336,7.46,203.39,203.31,7.58]
[1757109141341,10.16877119,203.39,203.26,7.83]
[1757109142041,7.68240106,203.35,203.26,7.83]
[1757109144142,0.03240106,203.35,203.27,2.70877119]
[1757109144342,0.03240106,203.35,203.28,7.83]
[1757109145344,10.35877119,203.34,203.24,4.11045169]
[1757109145544,10.35877119,203.34,203.2,7.83]
[1757109146047,7.65,203.28,203.2,7.83]
[1757109146237,7.65,203.28,203.17,2.70877119]
[1757109146847,7.65,203.24,203.16,36.96641512]
[1757109147047,7.65,203.24,203.16,39.67518631]
[1757109148445,7.65,203.24,203.16,11.39518631]
[1757109148655,7.65,203.24,203.16,8.68641512]
[1757109148850,7.65,203.24,203.16,7.83]
[1757109159763,0.03480945,203.25,203.18,7.83]
[1757109160158,7.65,203.28,203.19,7.83]
[1757109160354,0.03567488,203.24,203.19,7.83]
[1757109162266,0.03567488,203.24,203.18,4.429]
[1757109162565,0.03567488,203.24,203.19,7.83]
[1757109162765,0.03567488,203.24,203.18,135.809]
[1757109162967,0.03567488,203.24,203.19,7.83]
[1757109163867,0.03567488,203.24,203.18,135.809]
[1757109164067,0.03567488,203.24,203.19,7.83]
[1757109165265,0.03567488,203.24,203.18,135.809]
[1757109165464,0.03567488,203.24,203.19,7.83]
[1757109166464,0.03567488,203.24,203.18,135.809]
[1757109166671,0.03567488,203.24,203.19,7.83]
[1757109169063,0.03567488,203.24,203.19,7.58]
[1757109169260,0.03567488,203.24,203.19,130.58]
[1757109169459,7.43,203.23,203.19,130.58]
[1757109170169,7.43,203.23,203.19,138.16]
[1757109170871,7.46567488,203.24,203.2,7.58]
[1757109171273,7.43,203.23,203.14,7.58]
[1757109171872,0.03590808,203.21,203.14,7.58]
[1757109172871,0.03590808,203.21,203.14,10.28877119]
[1757109173464,0.03590808,203.21,203.15,7.58]
[1757109178270,0.03590808,203.21,203.13,122.6]
[1757109178271,7.43,203.2,203.13,122.6]
[1757109178470,7.43,203.2,203.14,7.58]
[1757109179876,0.03590808,203.21,203.14,7.58]
[1757109180675,0.03590808,203.21,203.16,7.58]
[1757109181269,0.03590808,203.21,203.15,2.70877119]
[1757109181470,7.46590808,203.21,203.17,7.58]
[1757109182178,0.03590808,203.21,203.16,129.58]
[1757109182477,0.03590808,203.21,203.17,7.58]
[1757109182878,7.46590808,203.21,203.17,7.58]
[1757109183274,0.03590808,203.21,203.16,129.58]
[1757109183479,7.46590808,203.21,203.17,137.12]
[1757109184178,0.03590808,203.21,203.17,7.58]
[1757109184482,7.43,203.2,203.17,7.58]
[1757109185682,0.03590808,203.21,203.16,102.46]
[1757109185880,0.03590808,203.21,203.17,7.58]
[1757109186277,0.03590808,203.21,203.16,102.46]
[1757109186575,0.03590808,203.21,203.17,7.58]
[1757109186771,0.03590808,203.21,203.16,102.46]
[1757109186969,0.03590808,203.21,203.17,7.58]
[1757109187174,0.03590808,203.21,203.16,102.46]
[1757109187374,0.03590808,203.21,203.17,7.58]
[1757109187582,0.03590808,203.21,203.16,102.46]
[1757109188469,0.03590808,203.21,203.13,4.43]
[1757109188670,7.46590808,203.21,203.14,136.12877119]
[1757109189279,0.03590808,203.21,203.15,7.58]
[1757109189480,0.03590808,203.21,203.18,1.73623938]
[1757109189878,0.03590808,203.21,203.19,7.58]
[1757109190378,0.03590808,203.21,203.18,1.73623938]
[1757109190576,0.03590808,203.21,203.19,7.58]
[1757109191178,0.03590808,203.21,203.2,7.58]
[1757109195179,1.77214746,203.21,203.17,4.11045169]
[1757109195378,7.43,203.18,203.12,4.11045169]
[1757109195583,7.43,203.18,203.1,1.73623938]
[1757109195584,7.43,203.18,203.11,4.96715143]
[1757109195984,7.43,203.18,203.11,0.85669974]
[1757109196183,7.43,203.16,203.11,0.85669974]
[1757109196487,7.43,203.16,203.11,132.51669974]
[1757109196983,0.03263684,203.17,203.11,132.51669974]
[1757109197877,7.43,203.16,203.11,132.51669974]
[1757109198382,7.88263684,203.17,203.11,132.51669974]
[1757109198582,7.88263684,203.17,203.11,132.33669974]
[1757109199581,7.88263684,203.17,203.11,134.07293912]
[1757109200381,0.03263684,203.17,203.13,1.73623938]
[1757109200684,0.03263684,203.17,203.16,7.35]
[1757109201285,0.03263684,203.17,203.16,9.08623938]
[1757109201486,0.03263684,203.17,203.16,140.36623938]
[1757109201687,0.03263684,203.17,203.16,7.35]
[1757109201986,0.03263684,203.17,203.16,140.54623938]
[1757109202185,0.03263684,203.17,203.16,9.08623938]
[1757109202380,0.03263684,203.17,203.16,140.48623938]
[1757109203387,0.03263684,203.17,203.16,9.08623938]
[1757109203587,0.03263684,203.17,203.16,140.36623938]
[1757109204292,1.73623938,203.27,203.17,7.35]
[1757109204486,1.73623938,203.27,203.19,7.35]
[1757109204688,1.73623938,203.27,203.19,9.08623938]
[1757109205290,1.73623938,203.28,203.19,7.35]
[1757109205491,1.73623938,203.28,203.19,9.08623938]
[1757109206392,7.85,203.29,203.19,9.08623938]
[1757109206693,1.73623938,203.28,203.19,9.08623938]